fUST/lending_fUST_20251018
["ID","MTS","AMOUNT","RATE_DAILY","PERIOD"]
[391758437,1760784646918,-158.4,0.00024873,2]
[391758438,1760784646927,-158.4,0.00024873,2]
[391758439,1760784646937,-158.0,0.00024873,2]
[391758440,1760784646946,-159.67236693,0.00024873,2]
[391758441,1760784646956,-160.0,0.00024873,2]
[391758442,1760784646966,-158.4,0.00024873,2]
[391758443,1760784646978,-411.63554078,0.00024873,2]
[391758444,1760784646987,-158.4,0.00024873,2]
[391758445,1760784646997,-500.0,0.00024873,2]
[391758446,1760784647006,-500.0,0.00024873,2]
[391758447,1760784647016,-160.0,0.00024873,2]
[391758448,1760784647025,-158.0,0.00024873,2]
[391758449,1760784647035,-500.0,0.00024873,2]
[391758450,1760784647045,-168.0,0.00024873,2]
[391758451,1760784647055,-258.41687579,0.00024873,2]
[391758452,1760784647064,-500.0,0.00024873,2]
[391758453,1760784647074,-502.11051514,0.00024873,2]
[391758454,1760784647083,-500.0,0.00024873,2]
[391758455,1760784647093,-500.0,0.00024873,2]
[391758456,1760784647103,-500.0,0.00024873,2]
[391758457,1760784647112,-500.0,0.00024873,2]
[391758458,1760784647122,-500.87588779,0.00024873,2]
[391758459,1760784647131,-502.4314613,0.00024873,2]
[391758460,1760784647140,-500.0,0.00024873,2]
[391758461,1760784647150,-503.02205326,0.00024873,2]
[391758462,1760784647159,-302.09325653,0.00024873,2]
[391758463,1760784647168,-500.0,0.00024873,2]
[391758464,1760784647178,-500.0,0.00024876,2]
[391758465,1760784647187,-600.0,0.00024896,2]
[391758466,1760784647197,-1000.0,0.000249,2]
[391758467,1760784647206,-331.414462,0.000249,7]
[391758468,1760784647216,-354922.673783,0.000249,2]
[391758469,1760784647227,-355.797224,0.000249,7]
[391758470,1760784647237,-5236.74094938,0.000249,2]
[391758471,1760784647257,-500.0,0.00024906,5]
[391758472,1760784647270,-196.0,0.00024907,2]
[391758473,1760784647279,-221.23451577,0.00024931,2]
[391758474,1760784647289,-500.0,0.00024931,2]
[391758475,1760784647298,-2000.0,0.00024931,2]
[391758476,1760784647310,-500.0,0.00024931,2]
[391758477,1760784647319,-500.0,0.00024931,2]
[391758478,1760784647329,-500.0,0.00024931,2]
[391758479,1760784647339,-500.0,0.00024931,2]
[391758480,1760784647351,-500.0,0.00024931,2]
[391758481,1760784647362,-500.0,0.00024931,2]
[391758482,1760784647372,-500.0,0.00024931,2]
[391758483,1760784647382,-286.74993965,0.00024931,2]
[391758484,1760784647392,-493.17102773,0.00024931,2]
[391758485,1760784647402,-500.0,0.00024931,2]
[391758486,1760784647412,-259.30037156,0.00024931,2]
[391758487,1760784647422,-500.0,0.00024931,2]
[391758488,1760784647432,-286.77438362,0.00024931,2]
[391758489,1760784647442,-519.56617309,0.00024931,2]
[391758490,1760784647452,-500.0,0.00024931,2]
[391758491,1760784647462,-500.0,0.00024931,2]
[391758492,1760784647472,-500.0,0.00024931,2]
[391758493,1760784647483,-737.08,0.00024931,2]
[391758494,1760784647492,-500.0,0.00024931,2]
[391758495,1760784647502,-512.68516319,0.00024931,2]
[391758496,1760784647512,-301.16598155,0.00024931,2]
[391758497,1760784647522,-500.0,0.00024931,2]
[391758498,1760784647531,-500.0,0.00024931,2]
[391758499,1760784647541,-500.0,0.00024931,2]
[391758500,1760784647551,-500.0,0.00024931,2]
[391758501,1760784647561,-500.0,0.00024931,2]
[391758502,1760784647571,-500.0,0.00024931,2]
[391758503,1760784647581,-500.0,0.00024931,2]
[391758504,1760784647590,-157.90916413,0.00024931,2]
[391758505,1760784647600,-500.0,0.00024931,2]
[391758506,1760784647610,-1000.0,0.00024931,2]
[391758507,1760784647620,-478.49507464,0.00024931,2]
[391758508,1760784647629,-500.0,0.00024931,2]
[391758509,1760784647639,-195.96891282,0.00024931,2]
[391758510,1760784647648,-500.0,0.00024931,2]
[391758511,1760784647658,-602.28685147,0.00024931,2]
[391758512,1760784647668,-500.0,0.00024931,2]
[391758513,1760784647678,-500.0,0.00024931,2]
[391758514,1760784647688,-500.0,0.00024931,2]
[391758515,1760784647697,-500.0,0.00024931,2]
[391758516,1760784647707,-309.82034296,0.00024931,2]
[391758517,1760784647717,-500.0,0.00024931,2]
[391758518,1760784647728,-369.57060391,0.00024931,2]
[391758519,1760784647738,-500.0,0.00024931,2]
[391758520,1760784647748,-500.0,0.00024931,2]
[391758521,1760784647758,-500.0,0.00024931,2]
[391758522,1760784647768,-500.0,0.00024931,2]
[391758523,1760784647778,-447.88378181,0.00024931,2]
[391758524,1760784647788,-500.0,0.00024931,2]
[391758525,1760784647798,-500.0,0.00024931,2]
[391758526,1760784647807,-500.0,0.00024931,2]
[391758527,1760784647817,-329.79,0.00024931,2]
[391758528,1760784647827,-500.0,0.00024931,2]
[391758529,1760784647837,-500.0,0.00024931,2]
[391758530,1760784647846,-274.63289586,0.00024931,2]
[391758531,1760784647856,-500.0,0.00024931,2]
[391758532,1760784647866,-449.6958682,0.00024931,2]
[391758533,1760784647875,-500.0,0.00024931,2]
[391758534,1760784647885,-500.0,0.00024931,2]
[391758535,1760784647895,-500.0,0.00024931,2]
[391758536,1760784647905,-500.0,0.00024931,2]
[391758537,1760784647915,-500.0,0.00024931,2]
[391758538,1760784647924,-523.87156516,0.00024931,2]
[391758539,1760784647934,-599.31,0.00024931,2]
[391758540,1760784647944,-513.86750143,0.00024931,2]
[391758541,1760784647953,-500.0,0.00024931,2]
[391758542,1760784647964,-500.0,0.00024931,2]
[391758543,1760784647975,-500.0,0.00024931,2]
[391758544,1760784647985,-500.0,0.00024931,2]
[391758545,1760784647995,-325.47745713,0.00024931,2]
[391758546,1760784648005,-500.0,0.00024931,2]
[391758547,1760784648015,-500.0,0.00024931,2]
[391758548,1760784648025,-500.0,0.00024931,2]
[391758549,1760784648035,-500.0,0.00024931,2]
[391758550,1760784648045,-500.0,0.00024931,2]
[391758551,1760784648055,-500.0,0.00024931,2]
[391758552,1760784648065,-500.0,0.00024931,2]
[391758553,1760784648075,-500.0,0.00024931,2]
[391758554,1760784648085,-500.0,0.00024931,2]
[391758555,1760784648095,-265.67431803,0.00024931,2]
[391758556,1760784648105,-500.0,0.00024931,2]
[391758557,1760784648115,-500.0,0.00024931,2]
[391758558,1760784648125,-500.0,0.00024931,2]
[391758559,1760784648136,-500.0,0.00024931,2]
[391758560,1760784648146,-500.0,0.00024931,2]
[391758561,1760784648156,-500.0,0.00024931,2]
[391758562,1760784648166,-187.15322351,0.00024931,2]
[391758563,1760784648176,-226.00033492,0.00024931,2]
[391758564,1760784648187,-500.0,0.00024931,2]
[391758565,1760784648197,-232.5793307,0.00024931,2]
[391758566,1760784648207,-500.0,0.00024931,2]
[391758567,1760784648217,-500.0,0.00024931,2]
[391758568,1760784648228,-500.0,0.00024931,2]
[391758569,1760784648237,-276.40600121,0.00024931,2]
[391758570,1760784648247,-500.0,0.00024931,2]
[391758571,1760784648257,-1000.0,0.00024931,2]
[391758572,1760784648267,-506.2,0.00024931,2]
[391758573,1760784648276,-863.08,0.00024931,2]
[391758574,1760784648286,-500.0,0.00024931,2]
[391758575,1760784648295,-500.0,0.00024931,2]
[391758576,1760784648305,-648.06,0.00024931,2]
[391758577,1760784648315,-500.0,0.00024931,2]
[391758578,1760784648324,-500.0,0.00024931,2]
[391758579,1760784648334,-500.0,0.00024931,2]
[391758580,1760784648343,-517.79,0.00024931,2]
[391758581,1760784648354,-698.75,0.00024931,2]
[391758582,1760784648364,-500.0,0.00024931,2]
[391758583,1760784648373,-500.0,0.00024931,2]
[391758584,1760784648384,-1464.05,0.00024931,2]
[391758585,1760784648394,-252.0637165,0.00024931,2]
[391758586,1760784648404,-825.98,0.00024931,2]
[391758587,1760784648413,-500.0,0.00024931,2]
[391758588,1760784648423,-500.0,0.00024931,2]
[391758589,1760784648432,-500.0,0.00024931,2]
[391758590,1760784648442,-500.0,0.00024931,2]
[391758591,1760784648451,-500.0,0.00024931,2]
[391758592,1760784648461,-500.0,0.00024931,2]
[391758593,1760784648471,-500.0,0.00024931,2]
[391758594,1760784648481,-500.0,0.00024931,2]
[391758595,1760784648491,-500.0,0.00024931,2]
[391758596,1760784648500,-500.0,0.00024931,2]
[391758597,1760784648510,-500.0,0.00024931,2]
[391758598,1760784648522,-627.09,0.00024931,2]
[391758599,1760784648532,-500.0,0.00024931,2]
[391758600,1760784648544,-500.0,0.00024931,2]
[391758601,1760784648554,-512.3099382,0.00024931,2]
[391758602,1760784648563,-500.0,0.00024931,2]
[391758603,1760784648573,-500.0,0.00024931,2]
[391758604,1760784648582,-1000.0,0.00024931,2]
[391758605,1760784648592,-500.0,0.00024931,2]
[391758606,1760784648602,-500.0,0.00024931,2]
[391758607,1760784648612,-353.36906208,0.00024931,2]
[391758608,1760784648622,-500.0,0.00024931,2]
[391758609,1760784648632,-500.0,0.00024931,2]
[391758610,1760784648642,-500.0,0.00024931,2]
[391758611,1760784648652,-500.0,0.00024931,2]
[391758612,1760784648661,-1344.3,0.00024931,2]
[391758613,1760784648671,-636.44,0.00024931,2]
[391758614,1760784648681,-500.0,0.00024931,2]
[391758615,1760784648690,-649.16095812,0.00024931,2]
[391758616,1760784648699,-500.0,0.00024931,2]
[391758617,1760784648710,-326.7231426,0.00024931,2]
[391758618,1760784648721,-500.0,0.00024931,2]
[391758619,1760784648731,-397.71530398,0.00024931,2]
[391758620,1760784648740,-500.0,0.00024931,2]
[391758621,1760784648750,-500.0,0.00024931,2]
[391758622,1760784648760,-500.0,0.00024931,2]
[391758623,1760784648770,-500.0,0.00024931,2]
[391758624,1760784648780,-500.0,0.00024931,2]
[391758625,1760784648789,-500.0,0.00024931,2]
[391758626,1760784648799,-500.0,0.00024931,2]
[391758627,1760784648810,-500.0,0.00024931,2]
[391758628,1760784648820,-500.0,0.00024931,2]
[391758629,1760784648829,-500.0,0.00024931,2]
[391758630,1760784648840,-1381.9,0.00024931,2]
[391758631,1760784648850,-500.0,0.00024931,2]
[391758632,1760784648860,-548.40378406,0.00024931,2]
[391758633,1760784648871,-500.39,0.00024931,2]
[391758634,1760784648881,-500.0,0.00024931,2]
[391758635,1760784648890,-1164.86,0.00024931,2]
[391758636,1760784648900,-500.0,0.00024931,2]
[391758637,1760784648910,-500.0,0.00024931,2]
[391758638,1760784648919,-1863.29,0.00024931,2]
[391758639,1760784648929,-500.0,0.00024931,2]
[391758640,1760784648939,-579.02594081,0.00024931,2]
[391758641,1760784648948,-500.0,0.00024931,2]
[391758642,1760784648957,-504.34,0.00024931,2]
[391758643,1760784648967,-500.0,0.00024931,2]
[391758644,1760784648979,-500.0,0.00024931,2]
[391758645,1760784648988,-500.0,0.00024931,2]
[391758646,1760784648998,-867.51,0.00024931,2]
[391758647,1760784649008,-500.0,0.00024931,2]
[391758648,1760784649018,-424.14803207,0.00024931,2]
[391758649,1760784649028,-500.0,0.00024931,2]
[391758650,1760784649037,-500.0,0.00024931,2]
[391758651,1760784649047,-500.0,0.00024931,2]
[391758652,1760784649057,-500.0,0.00024931,2]
[391758653,1760784649067,-500.0,0.00024931,2]
[391758654,1760784649077,-500.0,0.00024931,2]
[391758655,1760784649087,-500.0,0.00024931,2]
[391758656,1760784649097,-500.0,0.00024931,2]
[391758657,1760784649106,-500.0,0.00024931,2]
[391758658,1760784649117,-570.11048327,0.00024931,2]
[391758659,1760784649127,-500.0,0.00024931,2]
[391758660,1760784649136,-500.0,0.00024931,2]
[391758661,1760784649146,-2456.26,0.00024931,2]
[391758662,1760784649156,-500.0,0.00024931,2]
[391758663,1760784649166,-500.0,0.00024931,2]
[391758664,1760784649176,-1348.77,0.00024931,2]
[391758665,1760784649186,-500.0,0.00024931,2]
[391758666,1760784649196,-458.87911922,0.00024931,2]
[391758667,1760784649206,-317.8668845,0.00024931,2]
[391758668,1760784649216,-500.0,0.00024931,2]
[391758669,1760784649226,-500.0,0.00024931,2]
[391758670,1760784649236,-500.0,0.00024931,2]
[391758671,1760784649246,-500.0,0.00024931,2]
[391758672,1760784649257,-500.0,0.00024931,2]
[391758673,1760784649271,-500.0,0.00024931,2]
[391758674,1760784649280,-500.0,0.00024931,2]
[391758675,1760784649290,-500.0,0.00024931,2]
[391758676,1760784649299,-549.21270447,0.00024931,2]
[391758677,1760784649310,-500.0,0.00024931,2]
[391758678,1760784649319,-500.0,0.00024931,2]
[391758679,1760784649329,-500.0,0.00024931,2]
[391758680,1760784649340,-500.0,0.00024931,2]
[391758681,1760784649350,-1334.64,0.00024931,2]
[391758682,1760784649362,-815.33,0.00024931,2]
[391758683,1760784649371,-500.0,0.00024931,2]
[391758684,1760784649381,-246.29982149,0.00024931,2]
[391758685,1760784649391,-500.0,0.00024931,2]
[391758686,1760784649403,-500.0,0.00024931,2]
[391758687,1760784649415,-500.0,0.00024931,2]
[391758688,1760784649424,-632.1,0.00024931,2]
[391758689,1760784649435,-500.0,0.00024931,2]
[391758690,1760784649445,-500.0,0.00024931,2]
[391758691,1760784649454,-524.39564481,0.00024931,2]
[391758692,1760784649464,-500.0,0.00024931,2]
[391758693,1760784649474,-500.0,0.00024931,2]
[391758694,1760784649484,-668.7,0.00024931,2]
[391758695,1760784649494,-500.0,0.00024931,2]
[391758696,1760784649504,-530.99,0.00024931,2]
[391758697,1760784649514,-500.0,0.00024931,2]
[391758698,1760784649524,-500.0,0.00024931,2]
[391758699,1760784649534,-500.0,0.00024931,2]
[391758700,1760784649544,-500.0,0.00024931,2]
[391758701,1760784649554,-1528.81,0.00024931,2]
[391758702,1760784649564,-500.0,0.00024931,2]
[391758703,1760784649697,-500.0,0.00024931,2]
[391758704,1760784649721,-500.0,0.00024931,2]
[391758705,1760784649730,-1433.54,0.00024931,2]
[391758706,1760784649740,-500.0,0.00024931,2]
[391758707,1760784649749,-2502.4,0.00024931,2]
[391758708,1760784649759,-500.0,0.00024931,2]
[391758709,1760784649768,-500.0,0.00024931,2]
[391758710,1760784649778,-876.44,0.00024931,2]
[391758711,1760784649787,-1166.89,0.00024931,2]
[391758712,1760784649796,-500.0,0.00024931,2]
[391758713,1760784649805,-444.69039334,0.00024931,2]
[391758714,1760784649815,-328.46278849,0.00024931,2]
[391758715,1760784649824,-500.0,0.00024931,2]
[391758716,1760784649834,-906.48,0.00024931,2]
[391758717,1760784649843,-500.0,0.00024931,2]
[391758718,1760784649852,-500.0,0.00024931,2]
[391758719,1760784649864,-500.0,0.00024931,2]
[391758720,1760784649874,-1135.09,0.00024931,2]
[391758721,1760784649883,-500.0,0.00024931,2]
[391758722,1760784649892,-500.0,0.00024931,2]
[391758723,1760784649902,-500.0,0.00024931,2]
[391758724,1760784649911,-1039.61,0.00024931,2]
[391758725,1760784649920,-603.49,0.00024931,2]
[391758726,1760784649929,-500.0,0.00024931,2]
[391758727,1760784649939,-500.0,0.00024931,2]
[391758728,1760784649948,-500.0,0.00024931,2]
[391758729,1760784649957,-1232.05,0.00024931,2]
[391758730,1760784649967,-500.0,0.00024931,2]
[391758731,1760784649976,-506.1282257,0.00024931,2]
[391758732,1760784649985,-1146.28,0.00024931,2]
[391758733,1760784649995,-500.0,0.00024931,2]
[391758734,1760784650004,-1853.53,0.00024931,2]
[391758735,1760784650013,-923.01,0.00024931,2]
[391758736,1760784650023,-896.03,0.00024931,2]
[391758737,1760784650033,-500.0,0.00024931,2]
[391758738,1760784650042,-500.0,0.00024931,2]
[391758739,1760784650051,-1277.12995838,0.00024931,2]
[391758740,1760784650506,-204.87004162,0.00024931,2]
[391758741,1760784650516,-330.22995838,0.00024931,2]
[391758742,1760784650639,-151.0,0.00024557,7]
[391758743,1760784650651,-169.77004162,0.00024931,2]
[391758744,1760784650660,-1651.71,0.00024931,2]
[391758745,1760784650670,-500.0,0.00024931,2]
[391758746,1760784650679,-500.0,0.00024931,2]
[391758747,1760784650689,-500.0,0.00024931,2]
[391758748,1760784650698,-171.64663158,0.00024931,2]
[391758749,1760784650709,-500.0,0.00024931,2]
[391758750,1760784650718,-206.88334888,0.00024931,2]
[391758751,1760784650731,-293.11665112,0.00024931,2]
[391758752,1760784650740,-265.32039465,0.00024931,2]
[391758753,1760784650885,993.00831516,0.0002415,2]
[391758754,1760784651090,-220.56844177,0.00024249,2]
[391758755,1760784651099,-153.76929495,0.00024249,2]
[391758756,1760784651109,-150.0,0.00024536,2]
[391758757,1760784651118,-234.67960535,0.00024931,2]
[391758758,1760784651128,-323.29554294,0.00024931,2]
[391758759,1760784651137,-1370.41,0.00024931,2]
[391758760,1760784651148,-501.56939185,0.00024931,2]
[391758761,1760784651157,-500.0,0.00024931,2]
[391758762,1760784651167,-500.0,0.00024931,2]
[391758763,1760784651177,-1186.42,0.00024931,2]
[391758764,1760784651186,-500.0,0.00024931,2]
[391758765,1760784651195,-377.43084001,0.00024931,2]
[391758766,1760784651205,-625.14,0.00024931,2]
[391758767,1760784651215,-500.0,0.00024931,2]
[391758768,1760784651224,-2384.24,0.00024931,2]
[391758769,1760784651235,-500.0,0.00024931,2]
[391758770,1760784651244,-1613.51,0.00024931,2]
[391758771,1760784651253,-414.45578436,0.00024931,2]
[391758772,1760784651266,-500.0,0.00024931,2]
[391758773,1760784651275,-1094.97,0.00024931,2]
[391758774,1760784651284,-777.82,0.00024931,2]
[391758775,1760784651294,-886.42,0.00024931,2]
[391758776,1760784651303,-500.0,0.00024931,2]
[391758777,1760784651313,-500.0,0.00024931,2]
[391758778,1760784651322,-500.0,0.00024931,2]
[391758779,1760784651331,-500.0,0.00024931,2]
[391758780,1760784651341,-500.0,0.00024931,2]
[391758781,1760784651350,-2555.87,0.00024931,2]
[391758782,1760784651359,-500.0,0.00024931,2]
[391758783,1760784651369,-722.4,0.00024931,2]
[391758784,1760784651379,-340.47180317,0.00024931,2]
[391758785,1760784651388,-1841.13,0.00024931,2]
[391758786,1760784651398,-500.0,0.00024931,2]
[391758787,1760784651408,-2100.82,0.00024931,2]
[391758788,1760784651417,-1697.38,0.00024931,2]
[391758789,1760784651427,-563.62783674,0.00024931,2]
[391758790,1760784651437,-576.76312605,0.00024931,2]
[391758791,1760784651447,-1021.41,0.00024931,2]
[391758792,1760784651456,-547.93,0.00024931,2]
[391758793,1760784651466,-1383.41,0.00024931,2]
[391758794,1760784651475,-800.88,0.00024931,2]
[391758795,1760784651486,-1032.62,0.00024931,2]
[391758796,1760784651495,-500.0,0.00024931,2]
[391758797,1760784651505,-193.55529058,0.00024931,2]
[391758798,1760784651514,-1506.93,0.00024931,2]
[391758799,1760784651523,-500.0,0.00024931,2]
[391758800,1760784651533,-500.0,0.00024931,2]
[391758801,1760784651542,-500.0,0.00024931,2]
[391758802,1760784651552,-500.0,0.00024931,2]
[391758803,1760784651563,-500.0,0.00024931,2]
[391758804,1760784651572,-500.0,0.00024931,2]
[391758805,1760784651581,-500.0,0.00024931,2]
[391758806,1760784651591,-500.0,0.00024931,2]
[391758807,1760784651600,-625.52,0.00024931,2]
[391758808,1760784651609,-500.0,0.00024931,2]
[391758809,1760784651618,-555.08,0.00024931,2]
[391758810,1760784651627,-500.0,0.00024931,2]
[391758811,1760784651637,-500.0,0.00024931,2]
[391758812,1760784651647,-500.0,0.00024931,2]
[391758813,1760784651656,-500.0,0.00024931,2]
[391758814,1760784651665,-3115.74,0.00024931,2]
[391758815,1760784651674,-500.0,0.00024931,2]
[391758816,1760784651683,-500.0,0.00024931,2]
[391758817,1760784651693,-230.7602968,0.00024931,2]
[391758818,1760784651702,-500.0,0.00024931,2]
[391758819,1760784651711,-500.0,0.00024931,2]
[391758820,1760784651721,-560.42203307,0.00024931,2]
[391758821,1760784651731,-500.0,0.00024931,2]
[391758822,1760784651741,-500.0,0.00024931,2]
[391758823,1760784651751,-500.0,0.00024931,2]
[391758824,1760784651760,-2129.19,0.00024931,2]
[391758825,1760784651770,-500.0,0.00024931,2]
[391758826,1760784651779,-500.0,0.00024931,2]
[391758827,1760784651788,-500.0,0.00024931,2]
[391758828,1760784651798,-500.0,0.00024931,2]
[391758829,1760784651808,-1694.64,0.00024931,2]
[391758830,1760784651818,-500.0,0.00024931,2]
[391758831,1760784651829,-500.0,0.00024931,2]
[391758832,1760784651838,-1700.65,0.00024931,2]
[391758833,1760784651849,-2325.2,0.00024931,2]
[391758834,1760784651858,-886.8,0.00024931,2]
[391758835,1760784651867,-500.0,0.00024931,2]
[391758836,1760784651876,-545.41221293,0.00024931,2]
[391758837,1760784651886,-500.0,0.00024931,2]
[391758838,1760784651896,-500.0,0.00024931,2]
[391758839,1760784651906,-500.0,0.00024931,2]
[391758840,1760784651915,-500.0,0.00024931,2]
[391758841,1760784651925,-2336.16,0.00024931,2]
[391758842,1760784651935,-2122.96,0.00024931,2]
[391758843,1760784651944,-2947.84,0.00024931,2]
[391758844,1760784651954,-500.0,0.00024931,2]
[391758845,1760784651963,-772.18,0.00024931,2]
[391758846,1760784651973,-500.0,0.00024931,2]
[391758847,1760784651983,-500.0,0.00024931,2]
[391758848,1760784651993,-810.9,0.00024931,2]
[391758849,1760784652003,-689.03,0.00024931,2]
[391758850,1760784652012,-500.0,0.00024931,2]
[391758851,1760784652023,-500.0,0.00024931,2]
[391758852,1760784652032,-500.0,0.00024931,2]
[391758853,1760784652042,-1624.51,0.00024931,2]
[391758854,1760784652051,-500.0,0.00024931,2]
[391758855,1760784652061,-1106.96,0.00024931,2]
[391758856,1760784652070,-864.94,0.00024931,2]
[391758857,1760784652080,-2072.52,0.00024931,2]
[391758858,1760784652090,-500.0,0.00024931,2]
[391758859,1760784652099,-500.0,0.00024931,2]
[391758860,1760784652109,-500.0,0.00024931,2]
[391758861,1760784652118,-500.0,0.00024931,2]
[391758862,1760784652127,-500.0,0.00024931,2]
[391758863,1760784652137,-903.23,0.00024931,2]
[391758864,1760784652146,-722.19,0.00024931,2]
[391758865,1760784652155,-500.0,0.00024931,2]
[391758866,1760784652164,-500.0,0.00024931,2]
[391758867,1760784652173,-500.0,0.00024931,2]
[391758868,1760784652183,-924.55,0.00024931,2]
[391758869,1760784652192,-315.93664098,0.00024931,2]
[391758870,1760784652202,-500.0,0.00024931,2]
[391758871,1760784652211,-1839.09,0.00024931,2]
[391758872,1760784652220,-500.0,0.00024931,2]
[391758873,1760784652230,-719.65,0.00024931,2]
[391758874,1760784652239,-500.0,0.00024931,2]
[391758875,1760784652249,-450.0,0.00024947,2]
[391758876,1760784652259,-162.0,0.00024968,2]
[391758877,1760784652268,-160.0,0.00024968,2]
[391758878,1760784652277,-150.0,0.00024973,2]
[391758879,1760784652286,-152.70951866,0.00024973,2]
[391758880,1760784652295,-150.0,0.00024973,2]
[391758881,1760784652306,-150.0,0.00024973,2]
[391758882,1760784652318,-161.77999749,0.00024973,2]
[391758883,1760784652330,-1017.214609,0.0002498,5]
[391758884,1760784652340,-500.0,0.00024986,2]
[391758885,1760784652349,-1000.0,0.0002499,2]
[391758886,1760784652360,-16151.17714324,0.00025,2]
[391758887,1760784652369,-1239.69245382,0.00025,2]
[391758888,1760784652378,-209.97381242,0.00025,2]
[391758889,1760784652387,-10364.0,0.00025,2]
[391758890,1760784652396,-600.0,0.00025,2]
[391758891,1760784652405,-8316.16559635,0.00025,2]
[391758892,1760784652414,-150.0,0.00025,2]
[391758893,1760784652423,-1838.43067722,0.00025,2]
[391758894,1760784652433,-2000.0,0.00025,5]
[391758895,1760784652442,-792.33879085,0.00025,2]
[391758896,1760784652452,-140182.23844229,0.00025,30]
[391758897,1760784652462,-3549.065899,0.00025,2]
[391758898,1760784652609,-5606.0,0.00025,2]
[391758899,1760784652619,-402.78104431,0.00025,30]
[391758900,1760784652628,-1000.0,0.00025,5]
[391758901,1760784652638,-168.0,0.00025012,2]
[391758902,1760784652647,-500.0,0.00025041,2]
[391758903,1760784652657,-600.0,0.00025047,20]
[391758904,1760784652666,-168.0,0.0002505,2]
[391758905,1760784652675,-150.89059373,0.00025084,2]
[391758906,1760784652684,-500.0,0.00025084,2]
[391758907,1760784652693,-500.0,0.00025095,2]
[391758908,1760784652702,-150.0,0.00025113,7]
[391758909,1760784652713,-555.0,0.00025128,2]
[391758910,1760784652723,-600.0,0.0002515,2]
[391758911,1760784652733,-500.0,0.0002515,2]
[391758912,1760784652742,-331.414462,0.00025168,2]
[391758913,1760784652752,-355.797224,0.00025168,2]
[391758914,1760784652765,-168.0,0.00025168,2]
[391758915,1760784652774,-500.0,0.0002518,5]
[391758916,1760784652783,-168.0,0.00025189,2]
[391758917,1760784652792,-2000.0,0.000252,2]
[391758918,1760784652802,-500.0,0.00025205,2]
[391758919,1760784652811,-448.55621271,0.00025205,2]
[391758920,1760784652820,-500.0,0.00025205,2]
[391758921,1760784652830,-500.0,0.00025205,2]
[391758922,1760784652839,-500.0,0.00025205,2]
[391758923,1760784652849,-500.0,0.00025205,2]
[391758924,1760784652858,-500.0,0.00025205,2]
[391758925,1760784652867,-500.0,0.00025205,2]
[391758926,1760784652876,-500.0,0.00025205,2]
[391758927,1760784652886,-500.0,0.00025205,2]
[391758928,1760784652896,-500.0,0.00025205,2]
[391758929,1760784652905,-517.68825755,0.00025205,2]
[391758930,1760784652914,-737.08,0.00025205,2]
[391758931,1760784652923,-500.0,0.00025205,2]
[391758932,1760784652932,-261.05586917,0.00025205,2]
[391758933,1760784652942,-500.0,0.00025205,2]
[391758934,1760784652951,-500.0,0.00025205,2]
[391758935,1760784652960,-500.0,0.00025205,2]
[391758936,1760784652970,-265.78795921,0.00025205,2]